fUSD/lending_fUSD_20250930
["ID","MTS","AMOUNT","RATE_DAILY","PERIOD"]
[388524828,1759231856810,-1979.91,0.00019178,2]
[388524829,1759231856820,-2172.97,0.00019178,2]
[388524830,1759231856829,-1936.81,0.00019178,2]
[388524831,1759231856840,-5355.96,0.00019178,2]
[388524832,1759231856850,-3507.18,0.00019178,2]
[388524833,1759231856860,-500.0,0.00019178,2]
[388524834,1759231856870,-500.0,0.00019178,2]
[388524835,1759231856880,-500.0,0.00019178,2]
[388524836,1759231856890,-3271.33,0.00019178,2]
[388524837,1759231856899,-500.0,0.00019178,2]
[388524838,1759231856909,-500.0,0.00019178,2]
[388524839,1759231856919,-1393.42,0.00019178,2]
[388524840,1759231856929,-3610.5,0.00019178,2]
[388524841,1759231856939,-2877.7,0.00019178,2]
[388524842,1759231856948,-1013.23,0.00019178,2]
[388524843,1759231856958,-4016.71,0.00019178,2]
[388524844,1759231856967,-500.0,0.00019178,2]
[388524845,1759231856976,-5375.83,0.00019178,2]
[388524846,1759231856986,-3932.27,0.00019178,2]
[388524847,1759231856995,-500.0,0.00019178,2]
[388524848,1759231857004,-696.19,0.00019178,2]
[388524849,1759231857013,-151.0,0.00019178,2]
[388524850,1759231857023,-151.0,0.00019178,2]
[388524851,1759231857032,-151.0,0.00019178,2]
[388524852,1759231857041,-2088.49,0.00019178,2]
[388524853,1759231857051,-151.0,0.00019178,2]
[388524854,1759231857060,-3885.55,0.00019178,2]
[388524855,1759231857069,-500.0,0.00019178,2]
[388524856,1759231857079,-2641.12,0.00019178,2]
[388524857,1759231857088,-3000.08,0.00019178,2]
[388524858,1759231857098,-500.0,0.00019178,2]
[388524859,1759231857107,-500.0,0.00019178,2]
[388524860,1759231857117,-7407.7,0.00019178,2]
[388524861,1759231857127,-151.0,0.00019178,2]
[388524862,1759231857137,-4840.11,0.00019178,2]
[388524863,1759231857146,-5080.54,0.00019178,2]
[388524864,1759231857156,-500.0,0.00019178,2]
[388524865,1759231857165,-3412.97,0.00019178,2]
[388524866,1759231857175,-1003.97,0.00019178,2]
[388524867,1759231857184,-5130.15,0.00019178,2]
[388524868,1759231857194,-500.0,0.00019178,2]
[388524869,1759231857203,-3175.16,0.00019178,2]
[388524870,1759231857212,-913.93,0.00019178,2]
[388524871,1759231857222,-606.59,0.00019178,2]
[388524872,1759231857232,-500.0,0.00019178,2]
[388524873,1759231857241,-1635.2,0.00019178,2]
[388524874,1759231857252,-500.0,0.00019178,2]
[388524875,1759231857262,-3486.01,0.00019178,2]
[388524876,1759231857272,-6389.45,0.00019178,2]
[388524877,1759231857282,-2402.86,0.00019178,2]
[388524878,1759231857291,-1260.4,0.00019178,2]
[388524879,1759231857301,-2034.59,0.00019178,2]
[388524880,1759231857310,-7821.12,0.00019178,2]
[388524881,1759231857320,-500.0,0.00019178,2]
[388524882,1759231857330,-955.79,0.00019178,2]
[388524883,1759231857345,-2481.54,0.00019178,2]
[388524884,1759231857354,-2398.2,0.00019178,2]
[388524885,1759231857363,-1370.65,0.00019178,2]
[388524886,1759231857372,-13093.05,0.00019178,2]
[388524887,1759231857382,-151.0,0.00019178,2]
[388524888,1759231857391,-151.0,0.00019178,2]
[388524889,1759231857400,-151.0,0.00019178,2]
[388524890,1759231857409,-151.0,0.00019178,2]
[388524891,1759231857418,-151.0,0.00019178,2]
[388524892,1759231857427,-151.0,0.00019178,2]
[388524893,1759231857436,-151.0,0.00019178,2]
[388524894,1759231857447,-2236.07,0.00019178,2]
[388524895,1759231857457,-1336.94,0.00019178,2]
[388524896,1759231857466,-151.0,0.00019178,2]
[388524897,1759231857475,-3142.83,0.00019178,2]
[388524898,1759231857484,-258.06805,0.00019178,2]
[388524899,1759231857494,-500.0,0.00019178,2]
[388524900,1759231857503,-742.75,0.00019178,2]
[388524901,1759231857513,-151.0,0.00019178,2]
[388524902,1759231857522,-151.0,0.00019178,2]
[388524903,1759231857531,-13542.06,0.00019178,2]
[388524904,1759231857540,-500.0,0.00019178,2]
[388524905,1759231857552,-500.0,0.00019178,2]
[388524906,1759231857561,-6245.78,0.00019178,2]
[388524907,1759231857572,-500.0,0.00019178,2]
[388524908,1759231857582,-1255.05,0.00019178,2]
[388524909,1759231857591,-2868.13,0.00019178,2]
[388524910,1759231857600,-500.0,0.00019178,2]
[388524911,1759231857610,-302.42610178,0.00019178,2]
[388524912,1759231857619,-500.0,0.00019178,2]
[388524913,1759231857628,-500.0,0.00019178,2]
[388524914,1759231857638,-615.7,0.00019178,2]
[388524915,1759231857647,-1238.95,0.00019178,2]
[388524916,1759231857656,-1571.65,0.00019178,2]
[388524917,1759231857666,-2453.81,0.00019178,2]
[388524918,1759231857676,-5445.05,0.00019178,2]
[388524919,1759231857687,-5455.19,0.00019178,2]
[388524920,1759231857696,-592.5,0.00019178,2]
[388524921,1759231857706,-500.0,0.00019178,2]
[388524922,1759231857715,-500.0,0.00019178,2]
[388524923,1759231857724,-500.0,0.00019178,2]
[388524924,1759231857734,-4650.33,0.00019178,2]
[388524925,1759231857743,-1612.76,0.00019178,2]
[388524926,1759231857753,-500.0,0.00019178,2]
[388524927,1759231857762,-3200.75,0.00019178,2]
[388524928,1759231857771,-500.0,0.00019178,2]
[388524929,1759231857780,-854.12,0.00019178,2]
[388524930,1759231857789,-2474.09,0.00019178,2]
[388524931,1759231857799,-500.0,0.00019178,2]
[388524932,1759231857809,-1450.32,0.00019178,2]
[388524933,1759231857818,-2024.54,0.00019178,2]
[388524934,1759231857830,-3072.75,0.00019178,2]
[388524935,1759231857844,-7016.33,0.00019178,2]
[388524936,1759231857854,-408.52254637,0.00019178,2]
[388524937,1759231857865,-500.0,0.00019178,2]
[388524938,1759231857874,-500.0,0.00019178,2]
[388524939,1759231857884,-553.09,0.00019178,2]
[388524940,1759231857894,-1940.52,0.00019178,2]
[388524941,1759231857904,-500.0,0.00019178,2]
[388524942,1759231857914,-4362.99,0.00019178,2]
[388524943,1759231857923,-821.58,0.00019178,2]
[388524944,1759231857932,-500.0,0.00019178,2]
[388524945,1759231857942,-500.0,0.00019178,2]
[388524946,1759231857952,-5401.8,0.00019178,2]
[388524947,1759231857961,-1195.56,0.00019178,2]
[388524948,1759231857972,-500.0,0.00019178,2]
[388524949,1759231857982,-937.63,0.00019178,2]
[388524950,1759231857991,-503.03,0.00019178,2]
[388524951,1759231858002,-541.29,0.00019178,2]
[388524952,1759231858012,-506.4,0.00019178,2]
[388524953,1759231858022,-8111.06,0.00019178,2]
[388524954,1759231858031,-500.0,0.00019178,2]
[388524955,1759231858041,-849.97,0.00019178,2]
[388524956,1759231858051,-500.0,0.00019178,2]
[388524957,1759231858061,-500.0,0.00019178,2]
[388524958,1759231858070,-4117.95,0.00019178,2]
[388524959,1759231858079,-4128.62,0.00019178,2]
[388524960,1759231858089,-500.0,0.00019178,2]
[388524961,1759231858098,-500.0,0.00019178,2]
[388524962,1759231858107,-500.0,0.00019178,2]
[388524963,1759231858116,-291.885086,0.00019178,2]
[388524964,1759231858126,-861.03,0.00019178,2]
[388524965,1759231858137,-1548.69,0.00019178,2]
[388524966,1759231858147,-3482.77,0.00019178,2]
[388524967,1759231858156,-871.14,0.00019178,2]
[388524968,1759231858165,-160.0,0.00019178,2]
[388524969,1759231858175,-160.0,0.00019178,2]
[388524970,1759231858357,-4882.13,0.00019178,2]
[388524971,1759231858367,-3370.79,0.00019178,2]
[388524972,1759231858379,-861.51,0.00019178,2]
[388524973,1759231858388,-160.0,0.00019178,2]
[388524974,1759231858398,-151.0,0.00019178,2]
[388524975,1759231858407,-160.0,0.00019178,2]
[388524976,1759231858420,-151.0,0.00019178,2]
[388524977,1759231858431,-896.81,0.00019178,2]
[388524978,1759231858440,-160.0,0.00019178,2]
[388524979,1759231858451,-151.0,0.00019178,2]
[388524980,1759231858460,-500.0,0.00019178,2]
[388524981,1759231858470,-160.0,0.00019178,2]
[388524982,1759231858481,-160.0,0.00019178,2]
[388524983,1759231858491,-160.0,0.00019178,2]
[388524984,1759231858500,-547.33,0.00019178,2]
[388524985,1759231858510,-160.0,0.00019178,2]
[388524986,1759231858520,-2700.36,0.00019178,2]
[388524987,1759231858529,-160.00000025,0.00019178,2]
[388524988,1759231858539,-500.0,0.00019178,2]
[388524989,1759231858548,-13207.65,0.00019178,2]
[388524990,1759231858558,-893.0,0.00019178,2]
[388524991,1759231858567,-500.0,0.00019178,2]
[388524992,1759231858576,-2452.42,0.00019178,2]
[388524993,1759231858586,-10296.16,0.00019178,2]
[388524994,1759231858595,-667.47,0.00019178,2]
[388524995,1759231858604,-500.0,0.00019178,2]
[388524996,1759231858613,-744.61,0.00019178,2]
[388524997,1759231858624,-500.0,0.00019178,2]
[388524998,1759231858633,-4204.72,0.00019178,2]
[388524999,1759231858643,-500.0,0.00019178,2]
[388525000,1759231858652,-500.0,0.00019178,2]
[388525001,1759231858662,-624.76,0.00019178,2]
[388525002,1759231858672,-4265.5,0.00019178,2]
[388525003,1759231858682,-2499.59,0.00019178,2]
[388525004,1759231858692,-500.0,0.00019178,2]
[388525005,1759231858702,-5080.67,0.00019178,2]
[388525006,1759231858712,-713.44,0.00019178,2]
[388525007,1759231858722,-1367.39,0.00019178,2]
[388525008,1759231858732,-500.0,0.00019178,2]
[388525009,1759231858742,-500.0,0.00019178,2]
[388525010,1759231858752,-151.0,0.00019178,2]
[388525011,1759231858762,-507.14,0.00019178,2]
[388525012,1759231858771,-151.0,0.00019178,2]
[388525013,1759231858781,-279.392357,0.00019178,2]
[388525014,1759231858790,-500.0,0.00019178,2]
[388525015,1759231858801,-500.0,0.00019178,2]
[388525016,1759231858811,-4943.52,0.00019178,2]
[388525017,1759231858821,-500.0,0.00019178,2]
[388525018,1759231858830,-500.0,0.00019178,2]
[388525019,1759231858840,-500.0,0.00019178,2]
[388525020,1759231858849,-500.0,0.00019178,2]
[388525021,1759231858859,-3100.21,0.00019178,2]
[388525022,1759231858869,-6123.55,0.00019178,2]
[388525023,1759231858880,-955.1,0.00019178,2]
[388525024,1759231858890,-1419.89,0.00019178,2]
[388525025,1759231858900,-6257.59,0.00019178,2]
[388525026,1759231858910,-3594.17,0.00019178,2]
[388525027,1759231858919,-2620.69,0.00019178,2]
[388525028,1759231858929,-500.0,0.00019178,2]
[388525029,1759231858939,-500.0,0.00019178,2]
[388525030,1759231858950,-3866.85,0.00019178,2]
[388525031,1759231858960,-500.0,0.00019178,2]
[388525032,1759231858970,-500.0,0.00019178,2]
[388525033,1759231858980,-4752.41,0.00019178,2]
[388525034,1759231858990,-5776.79,0.00019178,2]
[388525035,1759231858999,-1342.07,0.00019178,2]
[388525036,1759231859009,-500.0,0.00019178,2]
[388525037,1759231859019,-3292.86,0.00019178,2]
[388525038,1759231859028,-155.6266,0.00019178,2]
[388525039,1759231859038,-6904.69,0.00019178,2]
[388525040,1759231859048,-151.0,0.00019178,2]
[388525041,1759231859058,-585.19,0.00019178,2]
[388525042,1759231859068,-500.0,0.00019178,2]
[388525043,1759231859078,-151.0,0.00019178,2]
[388525044,1759231859088,-151.0,0.00019178,2]
[388525045,1759231859098,-3666.92,0.00019178,2]
[388525046,1759231859108,-1217.58,0.00019178,2]
[388525047,1759231859118,-500.0,0.00019178,2]
[388525048,1759231859128,-3689.82,0.00019178,2]
[388525049,1759231859138,-1615.02,0.00019178,2]
[388525050,1759231859150,-986.55,0.00019178,2]
[388525051,1759231859159,-2600.55,0.00019178,2]
[388525052,1759231859169,-4336.87,0.00019178,2]
[388525053,1759231859179,-1139.37,0.00019178,2]
[388525054,1759231859189,-1893.22,0.00019178,2]
[388525055,1759231859199,-2792.33,0.00019178,2]
[388525056,1759231859208,-500.0,0.00019178,2]
[388525057,1759231859217,-21049.36,0.00019178,2]
[388525058,1759231859227,-500.0,0.00019178,2]
[388525059,1759231859238,-500.0,0.00019178,2]
[388525060,1759231859248,-4793.76,0.00019178,2]
[388525061,1759231859258,-500.0,0.00019178,2]
[388525062,1759231859268,-4704.56,0.00019178,2]
[388525063,1759231859277,-18052.08,0.00019178,2]
[388525064,1759231859287,-8973.6,0.00019178,2]
[388525065,1759231859297,-500.0,0.00019178,2]
[388525066,1759231859307,-623.7,0.00019178,2]
[388525067,1759231859317,-500.0,0.00019178,2]
[388525068,1759231859326,-1697.8,0.00019178,2]
[388525069,1759231859336,-1755.51,0.00019178,2]
[388525070,1759231859349,-1060.79,0.00019178,2]
[388525071,1759231859359,-500.0,0.00019178,2]
[388525072,1759231859368,-500.0,0.00019178,2]
[388525073,1759231859377,-500.0,0.00019178,2]
[388525074,1759231859387,-3295.5,0.00019178,2]
[388525075,1759231859396,-2002.49,0.00019178,2]
[388525076,1759231859405,-2976.3,0.00019178,2]
[388525077,1759231859415,-2891.36,0.00019178,2]
[388525078,1759231859424,-2148.37,0.00019178,2]
[388525079,1759231859433,-12839.31,0.00019178,2]
[388525080,1759231859442,-740.3,0.00019178,2]
[388525081,1759231859452,-2840.69,0.00019178,2]
[388525082,1759231859461,-1868.92,0.00019178,2]
[388525083,1759231859471,-500.0,0.00019178,2]
[388525084,1759231859480,-1568.16,0.00019178,2]
[388525085,1759231859489,-2455.54,0.00019178,2]
[388525086,1759231859498,-2674.62,0.00019178,2]
[388525087,1759231859507,-645.68,0.00019178,2]
[388525088,1759231859516,-7665.93,0.00019178,2]
[388525089,1759231859525,-500.0,0.00019178,2]
[388525090,1759231859535,-1458.83,0.00019178,2]
[388525091,1759231859544,-4099.88,0.00019178,2]
[388525092,1759231859555,-5302.72,0.00019178,2]
[388525093,1759231859564,-160.46093889,0.00019178,2]
[388525094,1759231859574,-741.28,0.00019178,2]
[388525095,1759231859583,-159.633598,0.00019178,2]
[388525096,1759231859593,-922.04,0.00019178,2]
[388525097,1759231859602,-594.32,0.00019178,2]
[388525098,1759231859611,-3478.23,0.00019178,2]
[388525099,1759231859620,-1543.51,0.00019178,2]
[388525100,1759231859630,-2434.08,0.00019178,2]
[388525101,1759231859640,-5953.31,0.00019178,2]
[388525102,1759231859650,-545.91,0.00019178,2]
[388525103,1759231859659,-500.0,0.00019178,2]
[388525104,1759231859669,-500.0,0.00019178,2]
[388525105,1759231859679,-3013.52,0.00019178,2]
[388525106,1759231859688,-500.0,0.00019178,2]
[388525107,1759231859699,-3194.14,0.00019178,2]
[388525108,1759231859708,-754.38,0.00019178,2]
[388525109,1759231859718,-4295.58,0.00019178,2]
[388525110,1759231859728,-500.0,0.00019178,2]
[388525111,1759231859738,-500.0,0.00019178,2]
[388525112,1759231859748,-1178.31,0.00019178,2]
[388525113,1759231859758,-500.0,0.00019178,2]
[388525114,1759231859767,-3366.32,0.00019178,2]
[388525115,1759231859777,-500.0,0.00019178,2]
[388525116,1759231859787,-1159.36,0.00019178,2]
[388525117,1759231859798,-500.0,0.00019178,2]
[388525118,1759231859807,-500.0,0.00019178,2]
[388525119,1759231859817,-500.0,0.00019178,2]
[388525120,1759231859827,-638.50616133,0.00019178,2]
[388525121,1759231859836,-4930.09,0.00019178,2]
[388525122,1759231859847,-500.0,0.00019178,2]
[388525123,1759231859856,-3123.47,0.00019178,2]
[388525124,1759231859866,-500.0,0.00019178,2]
[388525125,1759231859876,-549.36,0.00019178,2]
[388525126,1759231859886,-151.0,0.00019178,2]
[388525127,1759231859895,-176.170319,0.00019178,2]
[388525128,1759231859905,-500.0,0.00019178,2]
[388525129,1759231859914,-1220.98,0.00019178,2]
[388525130,1759231859924,-532.7,0.00019178,2]
[388525131,1759231859934,-156.42,0.00019178,2]
[388525132,1759231859944,-4328.49,0.00019178,2]
[388525133,1759231859953,-4358.22,0.00019178,2]
[388525134,1759231859963,-1008.52,0.00019178,2]
[388525135,1759231859972,-500.0,0.00019178,2]
[388525136,1759231859981,-3706.38,0.00019178,2]
[388525137,1759231859991,-12949.54,0.00019178,2]
[388525138,1759231860001,-500.0,0.00019178,2]
[388525139,1759231860010,-500.0,0.00019178,2]
[388525140,1759231860020,-1087.93,0.00019178,2]
[388525141,1759231860030,-1211.27,0.00019178,2]
[388525142,1759231860039,-280.52447464,0.00019178,2]
[388525143,1759231860049,-2419.61,0.00019178,2]
[388525144,1759231860059,-3539.0,0.00019178,2]
[388525145,1759231860070,-151.0,0.00019178,2]
[388525146,1759231860080,-151.0,0.00019178,2]
[388525147,1759231860089,-151.0,0.00019178,2]
[388525148,1759231860099,-2279.29,0.00019178,2]
[388525149,1759231860108,-513.73,0.00019178,2]
[388525150,1759231860118,-151.0,0.00019178,2]
[388525151,1759231860127,-151.514409,0.00019178,2]
[388525152,1759231860137,-500.0,0.00019178,2]
[388525153,1759231860148,-151.0,0.00019178,2]
[388525154,1759231860158,-292.612937,0.00019178,2]
[388525155,1759231860167,-536.056367,0.00019178,2]
[388525156,1759231860176,-536.056367,0.00019178,2]
[388525157,1759231860185,-536.056367,0.00019178,2]
[388525158,1759231860195,-694.07,0.00019178,2]
[388525159,1759231860205,-536.056367,0.00019178,2]
[388525160,1759231860213,-500.0,0.00019178,2]
[388525161,1759231860223,-536.056367,0.00019178,2]
[388525162,1759231860233,-536.056367,0.00019178,2]
[388525163,1759231860243,-500.0,0.00019178,2]
[388525164,1759231860253,-1635.13,0.00019178,2]
[388525165,1759231860263,-536.056367,0.00019178,2]
[388525166,1759231860272,-536.056367,0.00019178,2]
[388525167,1759231860281,-7295.37,0.00019178,2]
[388525168,1759231860290,-2978.7,0.00019178,2]
[388525169,1759231860300,-536.056367,0.00019178,2]
[388525170,1759231860310,-169.710261,0.00019178,2]
[388525171,1759231860319,-1567.77,0.00019178,2]
[388525172,1759231860329,-500.0,0.00019178,2]
[388525173,1759231860342,-169.710261,0.00019178,2]
[388525174,1759231860352,-897.46,0.00019178,2]
[388525175,1759231860362,-668.53,0.00019178,2]
[388525176,1759231860372,-500.0,0.00019178,2]
[388525177,1759231860383,-500.0,0.00019178,2]
[388525178,1759231860392,-3236.51,0.00019178,2]
[388525179,1759231860402,-536.056367,0.00019178,2]
[388525180,1759231860412,-500.0,0.00019178,2]
[388525181,1759231860424,-500.0,0.00019178,2]
[388525182,1759231860433,-169.710261,0.00019178,2]
[388525183,1759231860442,-536.056367,0.00019178,2]
[388525184,1759231860452,-500.0,0.00019178,2]
[388525185,1759231860462,-1487.14,0.00019178,2]
[388525186,1759231860924,-536.056367,0.00019178,2]
[388525187,1759231860934,-151.0,0.00019178,2]
[388525188,1759231860944,-169.710261,0.00019178,2]
[388525189,1759231860954,-151.0,0.00019178,2]
[388525190,1759231860963,-848.48,0.00019178,2]
[388525191,1759231860972,-169.710261,0.00019178,2]
[388525192,1759231860982,-160.908172,0.00019178,2]
[388525193,1759231860991,-169.710261,0.00019178,2]
[388525194,1759231861001,-527.99,0.00019178,2]
[388525195,1759231861010,-206.416758,0.00019178,2]
[388525196,1759231861019,-1647.99,0.00019178,2]
[388525197,1759231861028,-206.416758,0.00019178,2]
[388525198,1759231861038,-169.710261,0.00019178,2]
[388525199,1759231861047,-206.416758,0.00019178,2]
[388525200,1759231861057,-169.710261,0.00019178,2]
[388525201,1759231861066,-169.710261,0.00019178,2]
[388525202,1759231861075,-151.0,0.00019178,2]
[388525203,1759231861085,-787.26599199,0.00019178,2]
[388525204,1759231861096,-151.04,0.00019178,2]
[388525205,1759231861105,-152.27,0.00019178,2]
[388525206,1759231861115,-1105.21577305,0.0001918,2]
[388525207,1759231861127,-1266.0,0.00019195,2]
[388525208,1759231861136,-492.48730518,0.00019195,2]
[388525209,1759231861146,-150.0,0.00019205,4]
[388525210,1759231861155,-150.0,0.00019205,4]
[388525211,1759231861164,-150.0,0.00019205,4]
[388525212,1759231861174,-150.0,0.00019205,4]
[388525213,1759231861184,-150.0,0.00019205,4]
[388525214,1759231861196,-150.0,0.00019205,4]
[388525215,1759231861206,-150.0,0.00019205,4]
[388525216,1759231861216,-150.0,0.00019205,4]
[388525217,1759231861226,-150.0,0.00019205,4]
[388525218,1759231861235,-150.0,0.00019205,4]
[388525219,1759231861245,-25363.488,0.00019207,2]
[388525220,1759231861255,-1029.7206,0.0001921,2]
[388525221,1759231861265,-1680.0,0.00019214,2]
[388525222,1759231861275,-168.0,0.0001922,2]
[388525223,1759231861286,-161.87561518,0.00019239,2]
[388525224,1759231861295,-6281.11849301,0.0001924,2]
[388525225,1759231861305,-501.58,0.00019245,2]
[388525226,1759231861314,-301.83,0.00019245,2]
[388525227,1759231861327,-2044.0,0.00019251,2]
[388525228,1759231861338,-621.0,0.00019251,2]
[388525229,1759231861349,-72190.09114958,0.00019261,2]
[388525230,1759231861359,-296.98379,0.00019261,2]
[388525231,1759231861370,-173.346104,0.00019261,2]
[388525232,1759231861379,-151.0,0.00019261,2]
[388525233,1759231861388,-151.0,0.00019261,2]
[388525234,1759231861399,-150.0,0.00019273,2]
[388525235,1759231861408,-150.0,0.00019273,2]
[388525236,1759231861418,-464.0,0.00019273,2]
[388525237,1759231861427,-150.0,0.00019273,2]
[388525238,1759231861437,-150.0,0.00019273,2]
[388525239,1759231861449,-150.0,0.00019273,2]
[388525240,1759231861459,-500.0,0.00019273,2]
[388525241,1759231861469,-1714.0,0.00019273,2]
[388525242,1759231861479,-500.0,0.00019273,2]
[388525243,1759231861488,-150.0,0.00019273,2]
[388525244,1759231861498,-500.0,0.00019273,2]
[388525245,1759231861508,-500.0,0.00019273,2]
[388525246,1759231861517,-150.0,0.00019273,2]
[388525247,1759231861527,-1191.0,0.00019273,2]
[388525248,1759231861536,-150.0,0.00019273,2]
[388525249,1759231861545,-500.0,0.00019273,2]
[388525250,1759231861555,-16841.8925422,0.0001928,2]
[388525251,1759231861564,-200.0,0.00019289,2]
[388525252,1759231861575,-5449.76,0.000193,2]
[388525253,1759231861584,-492.48730518,0.00019313,2]
[388525254,1759231861594,-6281.11849301,0.00019317,2]
[388525255,1759231861604,-2412.0,0.00019323,2]
[388525256,1759231861614,-161.87561518,0.00019349,2]
[388525257,1759231861624,-161.50922692,0.00019352,2]
[388525258,1759231861633,-1432.18761157,0.00019352,2]
[388525259,1759231861643,-155.34851626,0.00019352,2]
[388525260,1759231861652,-915.25656556,0.00019352,2]
[388525261,1759231861662,-172.34593087,0.00019352,2]
[388525262,1759231861672,-186.65786088,0.00019352,3]
[388525263,1759231861681,-2841.57416832,0.00019352,2]
[388525264,1759231861691,-4351.921,0.0001936,2]
[388525265,1759231861701,-1583.0,0.00019361,2]
[388525266,1759231861711,-603.0,0.00019361,2]
[388525267,1759231861720,-568.0,0.00019361,2]
[388525268,1759231861730,-1305.0,0.00019361,2]
[388525269,1759231861741,-814.0,0.00019361,2]
[388525270,1759231861752,-900.026,0.00019361,2]
[388525271,1759231861761,-4235.0,0.00019361,2]
[388525272,1759231861772,-1180.0,0.00019361,2]
[388525273,1759231861781,-6281.11849301,0.00019394,2]
[388525274,1759231861791,-300.0,0.00019399,2]
[388525275,1759231861800,-2664.94,0.00019399,2]
[388525276,1759231861810,-471.8084698,0.00019399,2]
[388525277,1759231861820,-500.0,0.00019399,2]
[388525278,1759231861830,-500.0,0.00019399,2]
[388525279,1759231861839,-500.0,0.00019399,2]
[388525280,1759231861849,-831.15,0.00019399,2]
[388525281,1759231861858,-500.0,0.00019399,2]
[388525282,1759231861868,-500.0,0.00019399,2]
[388525283,1759231861878,-828.77,0.00019399,2]
[388525284,1759231861888,-563.67,0.00019399,2]
[388525285,1759231861898,-772.72,0.00019399,2]
[388525286,1759231861908,-782.03,0.00019399,2]
[388525287,1759231861918,-2535.67,0.00019399,2]
[388525288,1759231861928,-151.0,0.00019399,2]
[388525289,1759231861938,-5969.61062269,0.000194,2]
[388525290,1759231861948,-50802.58199794,0.000194,3]
[388525291,1759231861959,-273.39357614,0.000194,2]
[388525292,1759231861970,-194.56653792,0.000194,2]
[388525293,1759231861980,-474.52590314,0.000194,3]
[388525294,1759231861989,-500.0,0.000194,2]
[388525295,1759231862001,-500.0,0.000194,2]
[388525296,1759231862021,-500.0,0.000194,2]
[388525297,1759231862041,-500.0,0.000194,2]
[388525298,1759231862059,-243.10584076,0.000194,2]
[388525299,1759231862069,-168.0,0.00019405,2]
[388525300,1759231862079,-336.76,0.00019408,2]
[388525301,1759231862088,-734.61523007,0.00019425,2]
[388525302,1759231862098,-1220.0,0.00019425,2]
[388525303,1759231862107,-492.48730518,0.0001943,2]
[388525304,1759231862116,-1320.7,0.00019436,2]
[388525305,1759231862126,-500.0,0.00019438,2]
[388525306,1759231862136,-150.0,0.00019438,2]
[388525307,1759231862145,-500.0,0.00019438,2]
[388525308,1759231862154,-150.0,0.00019438,2]
[388525309,1759231862166,-646.25501537,0.00019438,2]
[388525310,1759231862176,-205.9399252,0.00019438,2]
[388525311,1759231862186,-500.0,0.00019438,2]
[388525312,1759231862197,-500.0,0.00019438,2]
[388525313,1759231862207,-150.0,0.00019443,2]
[388525314,1759231862216,-150.0,0.00019443,2]
[388525315,1759231862227,-150.0,0.00019443,2]
[388525316,1759231862236,-150.0,0.00019443,2]
[388525317,1759231862246,-500.0,0.00019443,2]
[388525318,1759231862257,-150.0,0.00019443,2]
[388525319,1759231862266,-500.0,0.00019443,2]
[388525320,1759231862276,-150.0,0.00019443,2]
[388525321,1759231862284,-150.0,0.00019443,2]
[388525322,1759231862293,-226.70139772,0.00019443,2]
[388525323,1759231862304,-150.0,0.00019443,2]
[388525324,1759231862314,-150.0,0.00019443,2]
[388525325,1759231862324,-1432.18761153,0.00019443,2]
[388525326,1759231862337,-500.0,0.00019451,2]
[388525327,1759231862346,-1000.0,0.00019451,2]